fUSD/lending_fUSD_20240406
["ID","MTS","AMOUNT","RATE_DAILY","PERIOD"]
[321667653,1712363463095,-500.0,0.00024657,2]
[321667654,1712363463104,-500.0,0.00024657,2]
[321667655,1712363463114,-500.0,0.00024657,2]
[321667656,1712363463123,-500.0,0.00024657,2]
[321667657,1712363463133,-500.0,0.00024657,2]
[321667658,1712363463142,-500.0,0.00024657,2]
[321667659,1712363463151,-500.0,0.00024657,2]
[321667660,1712363463161,-500.0,0.00024657,2]
[321667661,1712363463170,-500.0,0.00024657,2]
[321667662,1712363463180,-500.0,0.00024657,2]
[321667663,1712363463189,-500.0,0.00024657,2]
[321667664,1712363463198,-500.0,0.00024657,2]
[321667665,1712363463208,-500.0,0.00024657,2]
[321667666,1712363463217,-500.0,0.00024657,2]
[321667667,1712363463227,-500.0,0.00024657,2]
[321667668,1712363463236,-500.0,0.00024657,2]
[321667669,1712363463246,-500.0,0.00024657,2]
[321667670,1712363463256,-500.0,0.00024657,2]
[321667671,1712363463265,-500.0,0.00024657,2]
[321667672,1712363463276,-500.0,0.00024657,2]
[321667673,1712363463287,-500.0,0.00024657,2]
[321667674,1712363463296,-500.0,0.00024657,2]
[321667675,1712363463307,-500.0,0.00024657,2]
[321667676,1712363463316,-500.0,0.00024657,2]
[321667677,1712363463326,-500.0,0.00024657,2]
[321667678,1712363463336,-500.0,0.00024657,2]
[321667679,1712363463345,-500.0,0.00024657,2]
[321667680,1712363463355,-500.0,0.00024657,2]
[321667681,1712363463365,-231.77,0.00024657,2]
[321667682,1712363463376,-500.0,0.00024657,2]
[321667683,1712363463387,-500.0,0.00024657,2]
[321667684,1712363463397,-500.0,0.00024657,2]
[321667685,1712363463407,-500.0,0.00024657,2]
[321667686,1712363463416,-500.0,0.00024657,2]
[321667687,1712363463426,-500.0,0.00024657,2]
[321667688,1712363463436,-500.0,0.00024657,2]
[321667689,1712363463446,-500.0,0.00024657,2]
[321667690,1712363463455,-500.0,0.0002467,2]
[321667691,1712363463466,-500.0,0.0002467,2]
[321667692,1712363463478,-500.0,0.0002467,2]
[321667693,1712363463487,-516.08287578,0.0002467,2]
[321667694,1712363463498,-499.58867984,0.0002467,2]
[321667695,1712363463510,-500.0,0.0002467,2]
[321667696,1712363463520,-500.0,0.0002467,2]
[321667697,1712363463532,-500.0,0.0002467,2]
[321667698,1712363463541,-500.0,0.0002467,2]
[321667699,1712363463551,-506.95141511,0.0002467,2]
[321667700,1712363463561,-500.0,0.0002467,2]
[321667701,1712363463570,-504.77291213,0.0002467,2]
[321667702,1712363463579,-469.5409373,0.0002467,2]
[321667703,1712363463588,-207.16808004,0.0002467,2]
[321667704,1712363463597,-500.0,0.0002467,2]
[321667705,1712363463607,-500.0,0.0002467,2]
[321667706,1712363463616,-500.0,0.0002467,2]
[321667707,1712363463626,-500.0,0.0002467,2]
[321667708,1712363463635,-500.0,0.0002467,2]
[321667709,1712363463644,-500.0,0.0002467,2]
[321667710,1712363463654,-500.0,0.0002467,2]
[321667711,1712363463663,-209.40772916,0.0002467,2]
[321667712,1712363463675,-500.0,0.0002467,2]
[321667713,1712363463685,-500.0,0.0002467,2]
[321667714,1712363463694,-581.94,0.0002467,2]
[321667715,1712363463704,-500.0,0.0002467,2]
[321667716,1712363463715,-500.0,0.0002467,2]
[321667717,1712363463726,-500.0,0.0002467,2]
[321667718,1712363463737,-500.0,0.0002467,2]
[321667719,1712363463747,-500.0,0.0002467,2]
[321667720,1712363463758,-500.0,0.0002467,2]
[321667721,1712363463767,-500.0,0.0002467,2]
[321667722,1712363463778,-500.0,0.0002467,2]
[321667723,1712363463787,-500.0,0.0002467,2]
[321667724,1712363463796,-500.0,0.0002467,2]
[321667725,1712363463806,-588.702929,0.0002467,2]
[321667726,1712363463815,-500.0,0.0002467,2]
[321667727,1712363463826,-516.89971506,0.0002467,2]
[321667728,1712363463838,-500.0,0.0002467,2]
[321667729,1712363463848,-500.0,0.0002467,2]
[321667730,1712363463858,-500.0,0.0002467,2]
[321667731,1712363463869,-500.0,0.0002467,2]
[321667732,1712363463878,-513.5055348,0.0002467,2]
[321667733,1712363463888,-500.0,0.0002467,2]
[321667734,1712363463897,-500.0,0.0002467,2]
[321667735,1712363463908,-500.0,0.0002467,2]
[321667736,1712363463918,-500.0,0.0002467,2]
[321667737,1712363464079,-500.0,0.0002467,2]
[321667738,1712363464090,-1000.0,0.0002467,2]
[321667739,1712363464100,-500.0,0.0002467,2]
[321667740,1712363464110,-500.0,0.0002467,2]
[321667741,1712363464121,-500.0,0.0002467,2]
[321667742,1712363464133,-500.0,0.0002467,2]
[321667743,1712363464142,-500.0,0.0002467,2]
[321667744,1712363464152,-500.0,0.0002467,2]
[321667745,1712363464162,-498.87713432,0.0002467,2]
[321667746,1712363464172,-500.0,0.0002467,2]
[321667747,1712363464182,-500.0,0.0002467,2]
[321667748,1712363464191,-500.0,0.0002467,2]
[321667749,1712363464200,-500.0,0.0002467,2]
[321667750,1712363464210,-500.0,0.0002467,2]
[321667751,1712363464219,-500.0,0.0002467,2]
[321667752,1712363464229,-513.98008071,0.0002467,2]
[321667753,1712363464238,-500.0,0.0002467,2]
[321667754,1712363464248,-500.0,0.0002467,2]
[321667755,1712363464257,-500.0,0.0002467,2]
[321667756,1712363464267,-500.0,0.0002467,2]
[321667757,1712363464278,-500.0,0.0002467,2]
[321667758,1712363464287,-500.0,0.0002467,2]
[321667759,1712363464297,-500.0,0.0002467,2]
[321667760,1712363464307,-500.0,0.0002467,2]
[321667761,1712363464317,-500.0,0.0002467,2]
[321667762,1712363464326,-500.0,0.0002467,2]
[321667763,1712363464336,-500.0,0.0002467,2]
[321667764,1712363464346,-500.0,0.0002467,2]
[321667765,1712363464356,-500.0,0.0002467,2]
[321667766,1712363464365,-153.00377094,0.00024671,2]
[321667767,1712363464375,-469.8,0.000247,2]
[321667768,1712363464385,-416.91,0.00024731,2]
[321667769,1712363464394,-500.0,0.00024749,2]
[321667770,1712363464404,-164.66928833,0.0002475,2]
[321667771,1712363464416,-3760.86588884,0.0002475,2]
[321667772,1712363464425,-300.0,0.00024763,2]
[321667773,1712363464434,-1500.0,0.00024776,2]
[321667774,1712363464444,-1500.0,0.00024776,2]
[321667775,1712363464455,-500.0,0.00024778,2]
[321667776,1712363464466,-3961.71,0.00024778,2]
[321667777,1712363464476,-500.0,0.00024779,2]
[321667778,1712363464486,-503.61219481,0.00024779,2]
[321667779,1712363464496,-300.56774659,0.00024779,2]
[321667780,1712363464505,-516.7,0.00024779,2]
[321667781,1712363464515,-163.47,0.00024779,2]
[321667782,1712363464524,-500.0,0.00024779,2]
[321667783,1712363464535,-152.78656633,0.00024779,2]
[321667784,1712363464545,-500.0,0.00024779,2]
[321667785,1712363464555,-500.0,0.00024779,2]
[321667786,1712363464566,-500.0,0.00024779,2]
[321667787,1712363464575,-500.0,0.00024779,2]
[321667788,1712363464584,-500.0,0.00024779,2]
[321667789,1712363464594,-500.0,0.00024779,2]
[321667790,1712363464603,-500.0,0.00024779,2]
[321667791,1712363464613,-500.0,0.00024779,2]
[321667792,1712363464622,-500.0,0.00024779,2]
[321667793,1712363464633,-512.39,0.00024779,2]
[321667794,1712363464645,-500.0,0.00024779,2]
[321667795,1712363464654,-500.0,0.00024779,2]
[321667796,1712363464664,-500.0,0.00024779,2]
[321667797,1712363464674,-500.0,0.00024779,2]
[321667798,1712363464683,-500.0,0.00024779,2]
[321667799,1712363464693,-500.0,0.00024779,2]
[321667800,1712363464702,-500.0,0.00024779,2]
[321667801,1712363464712,-500.0,0.00024779,2]
[321667802,1712363464722,-500.0,0.00024779,2]
[321667803,1712363464732,-500.0,0.00024779,2]
[321667804,1712363464742,-500.0,0.00024779,2]
[321667805,1712363464752,-500.0,0.00024779,2]
[321667806,1712363464761,-500.0,0.00024779,2]
[321667807,1712363464771,-500.0,0.00024779,2]
[321667808,1712363464782,-500.0,0.00024779,2]
[321667809,1712363464791,-500.0,0.00024779,2]
[321667810,1712363464801,-153.00377094,0.00024786,2]
[321667811,1712363464811,-1500.0,0.00024798,2]
[321667812,1712363464821,-7051.508491,0.000248,2]
[321667813,1712363464835,-2222.45717539,0.000248,2]
[321667814,1712363464844,-200.0,0.000248,2]
[321667815,1712363464854,-800.0,0.000248,2]
[321667816,1712363464864,-200.0,0.000248,2]
[321667817,1712363464874,-500.0,0.000248,2]
[321667818,1712363464883,-200.0,0.000248,2]
[321667819,1712363464893,-166.42,0.000248,2]
[321667820,1712363464904,-160.96,0.000248,2]
[321667821,1712363464915,-1000.0,0.000248,2]
[321667822,1712363464926,-480.63756191,0.00024803,2]
[321667823,1712363464936,-328.73787444,0.00024803,2]
[321667824,1712363464946,-7657.70420803,0.00024806,2]
[321667825,1712363464956,-3828.85210401,0.00024808,2]
[321667826,1712363464965,-480.63756191,0.0002481,2]
[321667827,1712363464976,-681.24,0.00024814,2]
[321667828,1712363464985,-2249.59,0.00024814,2]
[321667829,1712363464997,-500.0,0.00024814,2]
[321667830,1712363465006,-657.9,0.00024814,2]
[321667831,1712363465016,-807.98,0.00024814,2]
[321667832,1712363465028,-1673.98,0.00024814,2]
[321667833,1712363465039,-500.0,0.00024814,2]
[321667834,1712363465049,-500.0,0.00024814,2]
[321667835,1712363465059,-6899.91,0.00024814,2]
[321667836,1712363465069,-1735.89,0.00024814,2]
[321667837,1712363465079,-500.0,0.00024814,2]
[321667838,1712363465089,-1162.73,0.00024814,2]
[321667839,1712363465099,-3828.85210401,0.00024815,2]
[321667840,1712363465109,-1500.0,0.00024818,2]
[321667841,1712363465119,-480.63756191,0.0002482,2]
[321667842,1712363465130,-3828.85210401,0.0002482,2]
[321667843,1712363465140,-7657.70420803,0.00024824,2]
[321667844,1712363465149,-3828.85210401,0.00024825,2]
[321667845,1712363465159,-3828.85210401,0.00024826,2]
[321667846,1712363465170,-7657.70420803,0.00024836,2]
[321667847,1712363465181,-328.73787444,0.00024841,2]
[321667848,1712363465191,-7657.70420803,0.00024841,2]
[321667849,1712363465201,-3828.85210401,0.00024843,2]
[321667850,1712363465211,-1433.58977005,0.00024844,2]
[321667851,1712363465222,-7657.70420803,0.00024845,2]
[321667852,1712363465232,-480.63756191,0.00024848,2]
[321667853,1712363465242,-480.63756191,0.00024851,2]
[321667854,1712363465252,-480.63756191,0.00024854,2]
[321667855,1712363465262,-902.52,0.00024854,2]
[321667856,1712363465272,-391.9725689,0.00024854,2]
[321667857,1712363465283,-500.0,0.00024854,2]
[321667858,1712363465293,-196.83392206,0.00024854,2]
[321667859,1712363465303,-566.01,0.00024854,2]
[321667860,1712363465313,-654.06,0.00024854,2]
[321667861,1712363465323,-6670.97,0.00024854,2]
[321667862,1712363465333,-500.0,0.00024854,2]
[321667863,1712363465343,-506.42,0.00024854,2]
[321667864,1712363465353,-500.0,0.00024854,2]
[321667865,1712363465363,-721.92,0.00024854,2]
[321667866,1712363465372,-500.0,0.00024854,2]
[321667867,1712363465382,-500.0,0.00024854,2]
[321667868,1712363465393,-380.03381342,0.00024854,2]
[321667869,1712363465402,-328.73787444,0.00024858,2]
[321667870,1712363465412,-328.73787444,0.00024859,2]
[321667871,1712363465422,-7657.70420803,0.00024861,2]
[321667872,1712363465431,-802.0,0.00024863,2]
[321667873,1712363465441,-279.0,0.00024863,2]
[321667874,1712363465450,-315.204,0.00024863,2]
[321667875,1712363465460,-1942.0,0.00024863,2]
[321667876,1712363465470,-434.0,0.00024863,2]
[321667877,1712363465480,-3033.0,0.00024863,2]
[321667878,1712363465489,-1462.0,0.00024863,2]
[321667879,1712363465498,-522.066,0.00024863,2]
[321667880,1712363465508,-245.619,0.00024863,2]
[321667881,1712363465518,-1627.0,0.00024863,2]
[321667882,1712363465529,-150.0,0.00024863,2]
[321667883,1712363465539,-2432.0,0.00024863,2]
[321667884,1712363465549,-207.0,0.00024863,2]
[321667885,1712363465558,-214.0,0.00024863,2]
[321667886,1712363465568,-2429.0,0.00024863,2]
[321667887,1712363465577,-5701.0,0.00024863,2]
[321667888,1712363465587,-459.0,0.00024863,2]
[321667889,1712363465596,-965.0,0.00024863,2]
[321667890,1712363465606,-4788.0,0.00024863,2]
[321667891,1712363465615,-20416.572,0.00024863,2]
[321667892,1712363465625,-604.996,0.00024863,2]
[321667893,1712363465634,-328.73787444,0.00024863,2]
[321667894,1712363465644,-7657.70420803,0.00024865,2]
[321667895,1712363465655,-480.63756191,0.00024866,2]
[321667896,1712363465665,-500.0,0.0002487,2]
[321667897,1712363465674,-500.0,0.0002487,2]
[321667898,1712363465684,-500.0,0.0002487,2]
[321667899,1712363465694,-500.0,0.0002487,2]
[321667900,1712363465703,-500.0,0.0002487,2]
[321667901,1712363465713,-500.0,0.0002487,2]
[321667902,1712363465723,-264.26427217,0.0002487,2]
[321667903,1712363465732,-500.0,0.0002487,2]
[321667904,1712363465743,-500.0,0.0002487,2]
[321667905,1712363465752,-480.63756191,0.00024873,2]
[321667906,1712363465763,-7657.70420803,0.00024873,2]
[321667907,1712363465772,-1500.0,0.00024875,2]
[321667908,1712363465783,-500.0,0.00024878,2]
[321667909,1712363465793,-500.0,0.00024878,2]
[321667910,1712363465803,-328.73787444,0.00024878,2]
[321667911,1712363465813,-500.0,0.00024878,2]
[321667912,1712363465822,-500.0,0.00024878,2]
[321667913,1712363465837,-500.0,0.00024878,2]
[321667914,1712363465847,-902.52,0.00024878,2]
[321667915,1712363465857,-325.01,0.00024878,2]
[321667916,1712363465868,-566.01,0.00024878,2]
[321667917,1712363465878,-500.0,0.00024878,2]
[321667918,1712363465888,-681.24,0.00024878,2]
[321667919,1712363465898,-2249.59,0.00024878,2]
[321667920,1712363465909,-500.0,0.00024878,2]
[321667921,1712363465919,-657.9,0.00024878,2]
[321667922,1712363465929,-807.98,0.00024878,2]
[321667923,1712363465939,-1673.98,0.00024878,2]
[321667924,1712363465949,-3961.71,0.00024878,2]
[321667925,1712363465958,-500.0,0.00024878,2]
[321667926,1712363465968,-654.06,0.00024878,2]
[321667927,1712363465978,-500.0,0.00024878,2]
[321667928,1712363465988,-6670.97,0.00024878,2]
[321667929,1712363465997,-6899.91,0.00024878,2]
[321667930,1712363466007,-1735.89,0.00024878,2]
[321667931,1712363466017,-500.0,0.00024878,2]
[321667932,1712363466029,-506.42,0.00024878,2]
[321667933,1712363466040,-500.0,0.00024878,2]
[321667934,1712363466050,-500.0,0.00024878,2]
[321667935,1712363466060,-721.92,0.00024878,2]
[321667936,1712363466071,-500.0,0.00024878,2]
[321667937,1712363466081,-1162.73,0.00024878,2]
[321667938,1712363466091,-500.0,0.00024878,2]
[321667939,1712363466100,-500.0,0.00024879,2]
[321667940,1712363466110,-500.0,0.00024879,2]
[321667941,1712363466119,-500.0,0.00024879,2]
[321667942,1712363466128,-500.0,0.00024879,2]
[321667943,1712363466138,-500.0,0.00024879,2]
[321667944,1712363466148,-500.0,0.00024879,2]
[321667945,1712363466157,-500.0,0.00024879,2]
[321667946,1712363466167,-500.0,0.00024879,2]
[321667947,1712363466177,-500.0,0.00024879,2]
[321667948,1712363466186,-500.0,0.00024879,2]
[321667949,1712363466195,-617.9791077,0.00024879,2]
[321667950,1712363466206,-500.0,0.00024879,2]
[321667951,1712363466215,-500.0,0.00024879,2]
[321667952,1712363466225,-212.76267319,0.00024879,2]
[321667953,1712363466235,-7657.70420803,0.00024881,2]
[321667954,1712363466245,-328.73787444,0.00024881,2]
[321667955,1712363466254,-160.0,0.00024882,2]
[321667956,1712363466265,-500.0,0.00024884,2]
[321667957,1712363466275,-3828.85210401,0.00024885,2]
[321667958,1712363466287,-3828.85210401,0.00024885,2]
[321667959,1712363466297,-480.63756191,0.00024888,2]
[321667960,1712363466306,-328.73787444,0.00024894,2]
[321667961,1712363466315,-328.73787444,0.00024897,2]
[321667962,1712363466325,-3828.85210401,0.00024897,2]
[321667963,1712363466335,-153.00377094,0.000249,2]
[321667964,1712363466344,-994.64,0.000249,2]
[321667965,1712363466355,-576.36,0.000249,2]
[321667966,1712363466364,-500.0,0.000249,2]
[321667967,1712363466374,-664.0,0.000249,2]
[321667968,1712363466384,-1000.0,0.000249,2]
[321667969,1712363466394,-5800.0,0.000249,2]
[321667970,1712363466403,-3000.67051657,0.000249,2]
[321667971,1712363466413,-3000.67051656,0.000249,2]
[321667972,1712363466423,-3000.67051656,0.000249,2]
[321667973,1712363466433,-3000.67051656,0.000249,2]
[321667974,1712363466442,-8266.04796955,0.000249,2]
[321667975,1712363466451,-3000.67051656,0.000249,2]
[321667976,1712363466461,-54654.40989911,0.000249,2]
[321667977,1712363466470,-3000.67051656,0.000249,2]
[321667978,1712363466480,-3000.67051656,0.000249,2]
[321667979,1712363466489,-3000.67051656,0.000249,2]
[321667980,1712363466542,-3000.67051656,0.000249,2]
[321667981,1712363466552,-3000.67051656,0.000249,2]
[321667982,1712363466561,-1702.57967725,0.000249,2]
[321667983,1712363466570,-3000.67051656,0.000249,2]
[321667984,1712363466580,-3000.67051656,0.000249,2]
[321667985,1712363466590,-3000.67051656,0.000249,2]
[321667986,1712363466601,-3000.67051656,0.000249,2]
[321667987,1712363466611,-151.9004117,0.000249,2]
[321667988,1712363466621,-3000.67051656,0.000249,2]
[321667989,1712363466632,-3000.67051656,0.000249,2]
[321667990,1712363466641,-3000.67051656,0.000249,2]
[321667991,1712363466651,-3000.67051656,0.000249,2]
[321667992,1712363466660,-3000.67051656,0.000249,2]
[321667993,1712363466670,-3000.67051656,0.000249,2]
[321667994,1712363466679,-333.040609,0.00024906,2]
[321667995,1712363466690,-333.040609,0.00024906,2]
[321667996,1712363466699,-333.040609,0.00024906,2]
[321667997,1712363466709,-333.040609,0.00024906,2]
[321667998,1712363466718,-333.040609,0.00024906,2]
[321667999,1712363466728,-333.040609,0.00024906,2]
[321668000,1712363466737,-333.040609,0.00024906,2]
[321668001,1712363466746,-333.040609,0.00024906,2]
[321668002,1712363466755,-333.040609,0.00024906,2]
[321668003,1712363466765,-333.040609,0.00024906,2]
[321668004,1712363466774,-992.22707918,0.0002494,2]
[321668005,1712363466785,-1495.0,0.00024949,2]
[321668006,1712363466795,-500.0,0.00024977,2]
[321668007,1712363466805,-500.0,0.00024978,2]
[321668008,1712363466816,-500.0,0.00024978,2]
[321668009,1712363466828,-500.0,0.00024978,2]
[321668010,1712363466839,-226.98344759,0.00024978,2]
[321668011,1712363466849,-681.24,0.00024978,2]
[321668012,1712363466859,-681.24,0.00024978,2]
[321668013,1712363466868,-681.24,0.00024978,2]
[321668014,1712363466879,-681.24,0.00024978,2]
[321668015,1712363466889,-2249.59,0.00024978,2]
[321668016,1712363466898,-681.24,0.00024978,2]
[321668017,1712363466909,-2249.59,0.00024978,2]
[321668018,1712363466919,-681.24,0.00024978,2]
[321668019,1712363466928,-2249.59,0.00024978,2]
[321668020,1712363466937,-681.32,0.00024978,2]
[321668021,1712363466947,-2249.59,0.00024978,2]
[321668022,1712363466956,-2249.59,0.00024978,2]
[321668023,1712363466965,-2249.59,0.00024978,2]
[321668024,1712363466974,-2249.69715527,0.00024978,2]
[321668025,1712363466983,-500.0,0.00024978,2]
[321668026,1712363466993,-500.0,0.00024978,2]
[321668027,1712363467002,-500.0,0.00024978,2]
[321668028,1712363467014,-500.0,0.00024978,2]
[321668029,1712363467023,-500.0,0.00024978,2]
[321668030,1712363467035,-500.54,0.00024978,2]
[321668031,1712363467046,-657.9,0.00024978,2]
[321668032,1712363467055,-657.9,0.00024978,2]
[321668033,1712363467065,-657.9,0.00024978,2]
[321668034,1712363467075,-657.9,0.00024978,2]
[321668035,1712363467085,-657.9,0.00024978,2]
[321668036,1712363467095,-657.9,0.00024978,2]
[321668037,1712363467105,-657.95273811,0.00024978,2]
[321668038,1712363467115,-807.98,0.00024978,2]
[321668039,1712363467124,-807.98,0.00024978,2]
[321668040,1712363467135,-807.98,0.00024978,2]
[321668041,1712363467145,-807.98,0.00024978,2]
[321668042,1712363467154,-807.98,0.00024978,2]
[321668043,1712363467164,-807.98,0.00024978,2]
[321668044,1712363467174,-808.15864534,0.00024978,2]
[321668045,1712363467184,-1673.98,0.00024978,2]
[321668046,1712363467194,-1673.98,0.00024978,2]
[321668047,1712363467204,-1673.98,0.00024978,2]
[321668048,1712363467214,-1673.98,0.00024978,2]
[321668049,1712363467224,-1673.98,0.00024978,2]
[321668050,1712363467234,-1673.98,0.00024978,2]
[321668051,1712363467244,-1674.04,0.00024978,2]
[321668052,1712363467254,-3961.71,0.00024978,2]
[321668053,1712363467263,-3961.71,0.00024978,2]
[321668054,1712363467273,-3961.71,0.00024978,2]
[321668055,1712363467284,-3961.71,0.00024978,2]
[321668056,1712363467294,-3961.71,0.00024978,2]
[321668057,1712363467304,-3961.71,0.00024978,2]
[321668058,1712363467314,-3961.71,0.00024978,2]
[321668059,1712363467324,-3961.71,0.00024978,2]
[321668060,1712363467333,-3961.76564766,0.00024978,2]
[321668061,1712363467343,-500.0,0.00024978,2]
[321668062,1712363467353,-500.0,0.00024978,2]
[321668063,1712363467363,-500.0,0.00024978,2]
[321668064,1712363467373,-500.0,0.00024978,2]
[321668065,1712363467382,-500.0,0.00024978,2]
[321668066,1712363467392,-399.56,0.00024978,2]
[321668067,1712363467401,-500.0,0.00024978,2]
[321668068,1712363467411,-500.0,0.00024978,2]
[321668069,1712363467421,-500.0,0.00024978,2]
[321668070,1712363467431,-393.92,0.00024978,2]
[321668071,1712363467440,-6899.91,0.00024978,2]
[321668072,1712363467450,-6899.91,0.00024978,2]
[321668073,1712363467459,-6899.91,0.00024978,2]
[321668074,1712363467469,-6899.91,0.00024978,2]
[321668075,1712363467478,-6899.91,0.00024978,2]
[321668076,1712363467488,-6899.91,0.00024978,2]
[321668077,1712363467497,-6899.955,0.00024978,2]
[321668078,1712363467507,-1735.89,0.00024978,2]
[321668079,1712363467516,-1735.89,0.00024978,2]
[321668080,1712363467526,-1735.89,0.00024978,2]
[321668081,1712363467538,-1735.89,0.00024978,2]
[321668082,1712363467548,-1735.89,0.00024978,2]
[321668083,1712363467557,-1735.89,0.00024978,2]
[321668084,1712363467566,-1736.09482326,0.00024978,2]
[321668085,1712363467576,-500.0,0.00024978,2]
[321668086,1712363467586,-500.0,0.00024978,2]
[321668087,1712363467595,-500.0,0.00024978,2]
[321668088,1712363467605,-500.0,0.00024978,2]
[321668089,1712363467614,-207.88,0.00024978,2]
[321668090,1712363467624,-1162.73,0.00024978,2]
[321668091,1712363467633,-1162.73,0.00024978,2]
[321668092,1712363467642,-1162.73,0.00024978,2]
[321668093,1712363467652,-1162.73,0.00024978,2]
[321668094,1712363467661,-1162.73,0.00024978,2]
[321668095,1712363467671,-1162.73,0.00024978,2]
[321668096,1712363467681,-1162.77,0.00024978,2]
[321668097,1712363467691,-500.0,0.00024978,2]
[321668098,1712363467701,-2581898.823915,0.00024979,2]
[321668099,1712363468134,-732531.11254718,0.00024979,2]
[321668100,1712363468144,-18750.5617003,0.00024997,2]
[321668101,1712363468153,-7270.6053379,0.00024997,2]
[321668102,1712363468163,-155352.7364272,0.00024997,2]
[321668103,1712363468172,-902.52,0.00024998,2]
[321668104,1712363468183,-566.01,0.00024998,2]
[321668105,1712363468195,-654.06,0.00024998,2]
[321668106,1712363468205,-6670.97,0.00024998,2]
[321668107,1712363468215,-500.0,0.00024998,2]
[321668108,1712363468225,-506.42,0.00024998,2]
[321668109,1712363468234,-500.0,0.00024998,2]
[321668110,1712363468244,-721.92,0.00024998,2]
[321668111,1712363468254,-500.0,0.00024998,2]
[321668112,1712363468263,-609.06478241,0.00024998,2]
[321668113,1712363468273,-151.0,0.00024999,2]
[321668114,1712363468284,-233.61186417,0.00024999,2]
[321668115,1712363468294,-150.01,0.00024999,2]
[321668116,1712363468303,-4427.26216231,0.00024999,2]
[321668117,1712363468313,-902.52,0.00024999,2]
[321668118,1712363468323,-902.52,0.00024999,2]
[321668119,1712363468333,-902.52,0.00024999,2]
[321668120,1712363468342,-902.52,0.00024999,2]
[321668121,1712363468352,-902.52,0.00024999,2]
[321668122,1712363468362,-902.52,0.00024999,2]
[321668123,1712363468371,-902.52,0.00024999,2]
[321668124,1712363468381,-902.722482,0.00024999,2]
[321668125,1712363468390,-566.01,0.00024999,2]
[321668126,1712363468400,-566.01,0.00024999,2]
[321668127,1712363468410,-566.01,0.00024999,2]
[321668128,1712363468420,-566.01,0.00024999,2]
[321668129,1712363468429,-566.01,0.00024999,2]
[321668130,1712363468439,-566.01,0.00024999,2]
[321668131,1712363468449,-566.01,0.00024999,2]
[321668132,1712363468458,-566.2295122,0.00024999,2]
[321668133,1712363468468,-654.06,0.00024999,2]
[321668134,1712363468477,-654.06,0.00024999,2]
[321668135,1712363468487,-654.06,0.00024999,2]
[321668136,1712363468496,-654.06,0.00024999,2]
[321668137,1712363468506,-654.06,0.00024999,2]
[321668138,1712363468515,-654.06,0.00024999,2]
[321668139,1712363468524,-654.06,0.00024999,2]
[321668140,1712363468535,-654.23946697,0.00024999,2]
[321668141,1712363468545,-6670.97,0.00024999,2]
[321668142,1712363468554,-6670.97,0.00024999,2]
[321668143,1712363468564,-6670.97,0.00024999,2]
[321668144,1712363468574,-6670.97,0.00024999,2]
[321668145,1712363468583,-6670.97,0.00024999,2]
[321668146,1712363468593,-6670.97,0.00024999,2]
[321668147,1712363468602,-6670.97,0.00024999,2]
[321668148,1712363468612,-6671.08363272,0.00024999,2]
[321668149,1712363468622,-500.0,0.00024999,2]
[321668150,1712363468631,-500.0,0.00024999,2]
[321668151,1712363468640,-500.0,0.00024999,2]
[321668152,1712363468650,-500.0,0.00024999,2]